Cogmind - Beta 13 @@@ ROGUE MODE // 2024.07.13 @ 19:46:42 Player: N.W.L Result: Destroyed by Y-54 Guardian with Gatling Laser Performance ------------- Evolutions (1) 500 Regions Visited (5) 1000 Robots Destroyed (2) 10 Value Destroyed (2) 2 Prototype IDs (0) 0 Alien Tech Used (0) 0 Bonus (200) 200 TOTAL SCORE: 1712 Bonus ------- Pacifist 200 Cogmind --------- Core Integrity 0/400 Matter 200/300 Energy 99/100 System Corruption 0% Temperature Cool (6) Movement Core (50) Location -6/Proximity Caves Parts ------- > --- POWER (1) -------- (None) > --- PROPULSION (2) --- (None) > --- UTILITY (4) ------ Signal Interpreter > --- WEAPON (2) ------- (None) > --- INVENTORY (5) ---- Rocket Launcher Peak State ------------ > --- POWER ------------ (None) > --- PROPULSION ------- (None) > --- UTILITY ---------- Signal Interpreter > --- WEAPON ----------- Rocket Launcher > --- INVENTORY -------- Heavy Explosive Trap Heavy Explosive Trap Heavy Explosive Trap Heavy Explosive Trap [Rating: 3] Favorites ----------- Power None Propulsion Hover Unit Hover Unit Hover Unit Utility Signal Interpreter Processor Signal Interpreter Weapon Rocket Launcher Launcher Rocket Launcher Build | -11 -10 -9 -9 -7 -6 ------- Run | Yrd Mat Mat Min Zio Pro Slots Evolved 2 | . . 2 . . . Power . | . . . . . . Propulsion . | . . . . . . Utility 2 | . . 2 . . . Weapon . | . . . . . . Parts Attached 3 | . . . 1 . 2 Power . | . . . . . . Engine . | . . . . . . Core . | . . . . . . Reactor . | . . . . . . Propulsion 1 | . . . . . 1 Treads . | . . . . . . Leg . | . . . . . . Wheel . | . . . . . . Hover 1 | . . . . . 1 Flight . | . . . . . . Utility 1 | . . . 1 . . Device . | . . . . . . Storage . | . . . . . . Processor 1 | . . . 1 . . Hackware . | . . . . . . Protection . | . . . . . . Artifact . | . . . . . . Weapon 1 | . . . . . 1 Energy Gun . | . . . . . . Energy Cannon . | . . . . . . Ballistic Gun . | . . . . . . Ballistic Cannon . | . . . . . . Launcher 1 | . . . . . 1 Special Weapon . | . . . . . . Impact Weapon . | . . . . . . Slashing Weapon . | . . . . . . Piercing Weapon . | . . . . . . Special Melee Weapon . | . . . . . . Unidentified Prototypes . | . . . . . . Parts Lost 1 | . . . . . 1 Power . | . . . . . . Propulsion 1 | . . . . . 1 Utility . | . . . . . . Weapon . | . . . . . . Highest Loss Streak 1 | . . . . . 1 To Critical Strikes . | . . . . . . Average Slot Usage (%) 10 | . . . 9 11 14 Hover 1 | . . . . . 3 Processor 8 | . . . 9 11 11 Naked Turns 109 | . 31 49 29 . . Heaviest Build . | . . . . . . Greatest Support 3 | 3 3 3 3 3 3 Greatest Overweight (x) . | . . . . . . Average Overweight (x) . | . . . . . . Largest Inventory Capacity 5 | 5 5 5 5 5 5 Average Capacity 5 | 5 5 5 5 5 5 Most Carried 5 | . . . 5 5 5 Average Carried 2 | . . . 2 5 3 Final Capacity 5 | 5 5 5 5 5 5 Final Carried 5 | . . . 5 5 1 Class Distribution -------------------- 100% | Mutant Dominant Class ---------------- Mutant | -10/Materials Mutant | -9/Materials Mutant | -9/Mines Mutant | -7/Zion Mutant | -6/Proximity Caves Resources | -11 -10 -9 -9 -7 -6 ----------- Run | Yrd Mat Mat Min Zio Pro Matter Collected 144 | 56 . 59 . . 29 Remotely . | . . . . . . Salvage Created . | . . . . . . Parts 1 | . . . . . 1 Haulers Intercepted . | . . . . . . Recyclers Shooed . | . . . . . . Parts Field Recycled . | . . . . . . Retrieved Matter . | . . . . . . Parts Self-Destructed . | . . . . . . Prevented . | . . . . . . Kills | -11 -10 -9 -9 -7 -6 ------- Run | Yrd Mat Mat Min Zio Pro Combat Hostiles Destroyed 2 | . . . . . 2 AOE 2 | . . . . . 2 Classes Destroyed 1 | . . . . . 1 Drone 2 | . . . . . 2 Best Kill Streak 2 | . . . . . 2 Combat Bots Only 2 | . . . . . 2 Max Kills in Single Turn 1 | . . . . . 1 Gunslinging . | . . . . . . Exploded 1 | . . . . . 1 Melee . | . . . . . . Uniques/NPCs Destroyed . | . . . . . . Combat | -11 -10 -9 -9 -7 -6 -------- Run | Yrd Mat Mat Min Zio Pro Hostile Shots Fired 65 | . 5 18 12 . 30 Missed 33 | . 2 10 7 . 14 Damage Taken 482 | . 51 136 73 . 222 Core 460 | . 51 136 73 . 200 Absorbed by Shields . | . . . . . . Core Remaining (%) 89 | 100 79 . . . . Volleys Fired 3 | . . . . . 3 Largest 1 | . . . . . 1 Hottest 33 | . . . . . 33 Shots Fired 3 | . . . . . 3 Gun . | . . . . . . Cannon . | . . . . . . Launcher 3 | . . . . . 3 Special . | . . . . . . Kinetic . | . . . . . . Thermal . | . . . . . . Explosive 3 | . . . . . 3 Electromagnetic . | . . . . . . Robot Hit Streak . | . . . . . . Robot Miss Streak . | . . . . . . Penetration Max . | . . . . . . Secondary Targets . | . . . . . . Shots Hit Robots . | . . . . . . Core Hits 3 | . . . . . 3 Critical Kills . | . . . . . . Critical Parts Destroyed . | . . . . . . Critical Strikes . | . . . . . . Melee Attacks . | . . . . . . Impact . | . . . . . . Slashing . | . . . . . . Piercing . | . . . . . . Sneak Attacks . | . . . . . . Combat Hostiles . | . . . . . . Follow-up Attacks . | . . . . . . Damage Inflicted 204 | . . 18 10 . 176 Guns . | . . . . . . Cannons . | . . . . . . Explosions 176 | . . . . . 176 Melee . | . . . . . . Ramming 28 | . . 18 10 . . Kinetic . | . . . . . . Thermal . | . . . . . . Explosive 176 | . . . . . 176 Electromagnetic . | . . . . . . Impact . | . . . . . . Slashing . | . . . . . . Piercing . | . . . . . . Highest Corruption . | . . . . . . Average Corruption . | . . . . . . Corruption Purged . | . . . . . . Corruption Blocked . | . . . . . . Overload Shots . | . . . . . . Overflow Damage . | . . . . . . Projectiles . | . . . . . . Explosions . | . . . . . . Melee . | . . . . . . Knockbacks . | . . . . . . Impact . | . . . . . . Kinetic . | . . . . . . Secondary . | . . . . . . Self-Inflicted Damage 13 | . . 8 5 . . Shots . | . . . . . . Rammed 6 | . . 4 2 . . Targets Rammed 6 | . . 4 2 . . Kicked . | . . . . . . Crushed . | . . . . . . Highest Temperature . | . . . . . . Average Temperature . | . . . . . . Received Heat Transfer 93 | . 15 33 39 . 6 Siege Activations . | . . . . . . Robots Corrupted . | . . . . . . Combat Hostiles . | . . . . . . Parts Fried . | . . . . . . Impact Corruptions . | . . . . . . Robots Melted . | . . . . . . Combat Hostiles . | . . . . . . Parts Melted . | . . . . . . Heat Transferred . | . . . . . . Parts Sabotaged . | . . . . . . Parts Stolen . | . . . . . . Parts Stripped . | . . . . . . Power Chain Reactions . | . . . . . . Alert | -11 -10 -9 -9 -7 -6 ------- Run | Yrd Mat Mat Min Zio Pro Peak Influence 115 | . 5 106 115 . . Initial 40 | . . 1 40 . . Average 54 | . 1 19 77 . . Maximum Alert Level . | . . . . . . Low Security (%) 100 | 100 100 100 100 . . Level 1 . | . . . . . . Level 2 . | . . . . . . Level 3 . | . . . . . . Level 4 . | . . . . . . Level 5 . | . . . . . . High Security . | . . . . . . Max Security . | . . . . . . Squads Dispatched . | . . . . . . Investigation . | . . . . . . Extermination . | . . . . . . Reinforcement . | . . . . . . Assault . | . . . . . . Garrison . | . . . . . . Intercept . | . . . . . . Searches Triggered . | . . . . . . Construction Impeded . | . . . . . . Haulers Reinforced . | . . . . . . Active Scanning Responses . | . . . . . . Cargo Convoy Interrupts . | . . . . . . Stealth | -11 -10 -9 -9 -7 -6 --------- Run | Yrd Mat Mat Min Zio Pro Distress Signals 3 | . . 3 . . . Communications Jammed . | . . . . . . Distress Signals . | . . . . . . Times Spotted 28 | . 4 12 5 . 7 Peak Tracking Total 11 | . 5 11 3 . 2 Tactical Retreats 3 | . . 1 2 . . Traps | -11 -10 -9 -9 -7 -6 ------- Run | Yrd Mat Mat Min Zio Pro Traps Triggered . | . . . . . . Indirectly . | . . . . . . Trap Hack Attempts . | . . . . . . Triggered . | . . . . . . Disarmed . | . . . . . . Reprogrammed . | . . . . . . Reused 4 | . . . . . 4 Traps Extracted . | . . . . . . Installed 4 | . . . . . 4 Triggered 4 | . . . . . 4 Most Traps Carried 4 | . . . 4 4 4 Machines | -11 -10 -9 -9 -7 -6 ---------- Run | Yrd Mat Mat Min Zio Pro Machines Disabled . | . . . . . . Max in Single Turn . | . . . . . . Machines Repaired . | . . . . . . Machines Dismantled . | . . . . . . Machines Sabotaged . | . . . . . . Overloaded Fab Kills . | . . . . . . Hacking | -11 -10 -9 -9 -7 -6 --------- Run | Yrd Mat Mat Min Zio Pro Machines Accessed 1 | . 1 . . . . Terminals 1 | . 1 . . . . Fabricators . | . . . . . . Repair Stations . | . . . . . . Recycling Units . | . . . . . . Scanalyzers . | . . . . . . Garrison Access . | . . . . . . Total Hacks 3 | . 3 . . . . Successful 1 | . 1 . . . . Failed 2 | . 2 . . . . Catastrophic . | . . . . . . Database Lockouts . | . . . . . . Manual 3 | . 3 . . . . Terminals 3 | . 3 . . . . Fabricators . | . . . . . . Repair Stations . | . . . . . . Recycling Units . | . . . . . . Scanalyzers . | . . . . . . Garrison Access . | . . . . . . Terminal Hacks . | . . . . . . Fabricator Hacks . | . . . . . . Repair Station Hacks . | . . . . . . Recycling Unit Hacks . | . . . . . . Scanalyzer . | . . . . . . Garrison Access Hacks . | . . . . . . Unauthorized Hacks 1 | . 1 . . . . Terminals 1 | . 1 . . . . Botnet 1 | . 1 . . . . Fabricators . | . . . . . . Repair Stations . | . . . . . . Recycling Units . | . . . . . . Scanalyzers . | . . . . . . Garrison Access . | . . . . . . Data Cores Recovered . | . . . . . . Used . | . . . . . . Hacking Detections 1 | . 1 . . . . Full Trace Events 1 | . 1 . . . . Feedback Events . | . . . . . . Feedback Blocked . | . . . . . . Robot Schematics Acquired . | . . . . . . Robots Built . | . . . . . . Authchips . | . . . . . . Time . | . . . . . . Total Robot Build Rating . | . . . . . . Part Schematics Acquired . | . . . . . . Parts Built . | . . . . . . Authchips . | . . . . . . Time . | . . . . . . Total Part Build Rating . | . . . . . . Parts Repaired . | . . . . . . Time . | . . . . . . Parts Recycled . | . . . . . . Recycled Matter . | . . . . . . Retrieved Matter . | . . . . . . Retrieved Components . | . . . . . . Parts Scanalyzed . | . . . . . . Part Schematics Acquired . | . . . . . . Parts Damaged . | . . . . . . Bothacking | -11 -10 -9 -9 -7 -6 ------------ Run | Yrd Mat Mat Min Zio Pro Used RIF Installer . | . . . . . . Robots Hacked . | . . . . . . Non-combat . | . . . . . . Combat . | . . . . . . Robot Hacks Applied . | . . . . . . Relay Couplers Released . | . . . . . . Fabnet Peak Effective % . | . . . . . . Robots Rewired . | . . . . . . Allies Hacked . | . . . . . . Hacks Repelled . | . . . . . . Allies | -11 -10 -9 -9 -7 -6 -------- Run | Yrd Mat Mat Min Zio Pro Total Allies . | . . . . . . Largest Group . | . . . . . . Highest-Rated Group . | . . . . . . Highest-Rated Ally . | . . . . . . Total Orders . | . . . . . . Ally Attacks . | . . . . . . Total Damage . | . . . . . . Kills . | . . . . . . Allies Corrupted . | . . . . . . Allies Melted . | . . . . . . Intel | -11 -10 -9 -9 -7 -6 ------- Run | Yrd Mat Mat Min Zio Pro Robot Analysis Total . | . . . . . . Derelict Logs Recovered 3 | . . . 2 1 . Drone Launches . | . . . . . . Drone Recoveries . | . . . . . . Exploration | -11 -10 -9 -9 -7 -6 ------------- Run | Yrd Mat Mat Min Zio Pro Turns Passed 486 | 9 31 49 167 25 205 Spaces Moved 873 | 18 61 90 315 50 339 Core 873 | 18 61 90 315 50 339 Treads . | . . . . . . Legs . | . . . . . . Wheels . | . . . . . . Hover . | . . . . . . Flight . | . . . . . . Fastest Speed 50 | 50 50 50 50 50 50 Average Speed 50 | 50 50 50 50 50 50 Slowest Speed 50 | 50 50 50 50 50 50 Overloaded Moves . | . . . . . . Propulsion Burnouts . | . . . . . . Robots Hopped . | . . . . . . Cave-ins Triggered . | . . . . . . Exploration Rate (%) 29 | 4 16 23 83 7 43 Regions Visited 5 Branch Regions 3 Pre-discovered Areas 1 | . . . . 1 . Known Exits Taken 2 | . . . 1 1 . Unknown Exits Taken 3 | 1 1 1 . . . Scrap Searched 1 | . . . 1 . . Spaces Dug 25 | . . . . . 25 Terrain Destroyed 25 | . . . . . 25 Melee . | . . . . . . Projectile . | . . . . . . AOE 25 | . . . . . 25 Terrain Rammed . | . . . . . . Walls Destroyed . | . . . . . . Machines Disabled . | . . . . . . Actions | -11 -10 -9 -9 -7 -6 --------- Run | Yrd Mat Mat Min Zio Pro Total 915 | 17 60 93 323 49 373 Wait 21 | . . . 1 . 20 Move 868 | 17 60 89 314 49 339 Hop . | . . . . . . Pick Up 5 | . . . 5 . . Fast Attach 2 | . . . 1 . 1 Attach 1 | . . . . . 1 Detach 1 | . . . . . 1 Swap . | . . . . . . Drop 4 | . . . . . 4 Fire 3 | . . . . . 3 Melee . | . . . . . . Ram 6 | . . 4 2 . . Kick . | . . . . . . Crush . | . . . . . . Escape Stasis . | . . . . . . Rewire . | . . . . . . Trap 4 | . . . . . 4 Miscellaneous . | . . . . . . Route ------- -11/Scrapyard -10/Materials -9/Materials -9/Mines (discovered 2 exits: *Mat / *Zio) -7/Zion -6/Proximity Caves History --------- Turn | Location | Event 4 | -11/Scrapyard | Discovered new exit (range 13) 10 | -11/Scrapyard | Entered Materials 36 | -10/Materials | Discovered new exit (range 11) 41 | -10/Materials | Entered another Materials area 41 | -9/Materials | Evolved 2 slots: Utility x2 85 | -9/Materials | Discovered new exit (range 10) 90 | -9/Materials | Entered Mines 104 | -9/Mines | Received a Rocket Launcher from a helpful Derelict 112 | -9/Mines | Learned 4 Materials zone layouts 167 | -9/Mines | Learned 2 Materials zone layouts 203 | -9/Mines | Found a hidden stash of uninstalled traps 212 | -9/Mines | Core integrity fell below 50% 235 | -9/Mines | Discovered new exit (range 10) 239 | -9/Mines | Identified exit to Materials 255 | -9/Mines | A Derelict revealed a hidden shortcut to a safe place 257 | -9/Mines | Identified exit to Zion 257 | -9/Mines | Entered Zion 274 | -7/Zion | Given A8's code to call for help 275 | -7/Zion | Discovered new exit (range 15) 282 | -7/Zion | Identified exit to Proximity Caves 282 | -7/Zion | Entered Proximity Caves 284 | -6/Proximity Caves | Spotter reported a threat 285 | -6/Proximity Caves | Spotter reported a threat 308 | -6/Proximity Caves | Spotted B-75 Beast 315 | -6/Proximity Caves | Build established: Mutant 367 | -6/Proximity Caves | Core integrity fell below 20% 487 | -6/Proximity Caves | Destroyed by Y-54 Guardian with Gatling Laser Last Messages --------------- 00355_ Dropped Heavy Explosive Trap. 00355_ Installed Heavy Explosive Trap. 00365_ H-66 Slayer triggered Heavy Explosive Trap. 00365_ An explosion rips through the floor. 00366_ Penetrated by Slug. 00366_ Slug penetrates Wall. 00371_ Penetrated by Slug. 00399_ AM-S4U(k) breaks down the debris. 00434_ Dropped Heavy Explosive Trap. 00434_ Installed Heavy Explosive Trap. 00437_ Dropped Heavy Explosive Trap. 00437_ Installed Heavy Explosive Trap. 00440_ Dropped Heavy Explosive Trap. 00441_ Installed Heavy Explosive Trap. 00447_ Slug penetrates AM-S4U(k). 00447_ AM-S4U(k) destroyed. 00447_ Slug penetrates Abandoned Machinery. 00465_ Acquired 19 matter. 00468_ Acquired 10 matter. 00471_ The unstable cave ceiling collapses. Map ----- +----------------------------------------------------+ | ?????????????????????????????????????????????????? | | ?????????????????????????????????????????????????? | | ?????????????????????????????????????????????????? | | ?????????????????????????????????????????????????? | | ?????????????????????????????????????????????????? | | ?????????????????????????????????????????????????? | | ?????????????????????????????????????????????????? | | ?????????????????????????????????????????????????? | | ?????????????????????????????????????????????????? | | ?????????????????????????????????????????????????? | | ?????????????????????????????????????????????????? | | ?????????????????????# ??????????????????????????? | | ??????????????????### ????#?????????????????????? | | ???????????????? ???# ?????????????????????? | | ??????????????? ### ?????????????????????? | | ???????????????? s ?????????????????????? | | ????????????## ?g Y ??????????????????????? | | ????????????# ? ??????????????????????? | | ???????????? ? ??????????????????????? | | ????????????? ?? #??????????????????????? | | ?????????????? ?? #??????????????????????? | | ???????????????# ??# #??????????????????????? | | ????????????????# #?# #??????????????????????? | | ?????????????????# #?# ##?????????????????????? | | ??????????????????# #?# #### # #?????????????? | | ??????????????????# ## @ #?????????????? | | ??????????????????# #?????????????? | | ?????????????????## #### # ##?????????????? | | ????????????????# ##?????????????????????? | | ????????????????##### ##??????????????????????? | | ??????????######??## ##???????????????????????? | | ?###?????## ##?# #????????????????????????? | | ## ????## ### ##????????????????????????? | | ##### ###?????????????????????????? | | ## ##???????????????????????????? | | ####??##????????????????????????? | | ##????# ##???????????????????????? | | #####??### #???????????????????????? | | ##??????# #????????????????????????? | | #####???## #?????????????????????????? | | #### ##??# ##?????????????????????????? | | ##?# #### ####???????????????????????? | | #### #???????????????????????? | | ## ### #???????????????????????? | | ### #?## ##???????????????????????? | | ??# #??## ##????????????????????????? | | ## ??# ###???## ##?????????????????????????? | | ?# ??# ##??????# #??????????????????????????? | | ? ?## ##???????# #??????????????????????????? | | ?# ##???????# #??????????????????????????? | +----------------------------------------------------+ Best States ------------- Heat Dissipation 28 Energy Generation 5 Energy Capacity 100 Matter Stores 224 Matter Capacity 300 Sight Range 16 Terrain Scan Density 10 Evasion (%) 50 Item Schematics ----------------- None Robot Schematics ------------------ None Fabricated ------------ Nothing Alien Tech Used ----------------- None Achievements -------------- None Challenges ------------ None Game ------ Seed FlightPlatingActivator Manual? 0 Play Time 00:08:22 Cumulative 195.9 hours Start 2024.07.13 @ 19:40:49 End 2024.07.13 @ 19:46:42 Sessions 1 Manual Loads 0 Difficulty Rogue Special Mode None Game No. 90 Rogue 90 Adventurer 0 Explorer 0 Win Type - Total 4 Types 2/0/2/0/0/0/0/0/0 Lore% 77 Gallery% 84 Achievement% 63 Wizard Run 0 Options --------- Layout 0 ASCII 0 Keyboard 0 Movement Mouse Keybinds 0 Fullscreen 2 Font 14/SmallcapsGlow Map View 72x54 Zoom Use 0% Tactical HUD 1 Map Filters NONE Filters NONE Steam 1 RUN: 5922186e-af0a-4086-a06c-5182171c8ce8